[Event "10th Cesme Open-B 2024"]
[Site "Cesme"]
[Date "2024.06.27"]
[Round "6"]
[White "Buyuk, Ecrin Efsa"]
[Black "Can, Isik"]
[Result "0-1"]
[ECO "A08"]
[WhiteElo "1816"]
[BlackElo "2509"]
[Annotator "TA"]
[PlyCount "96"]
[EventDate "2024.06.23"]
[EventType "swiss"]
[EventCountry "TUR"]
[SourceTitle "playchess.com"]
[Source "ChessBase"]
[SourceQuality "1"]
[TimeControl "5400+30"]

{[%evp 17,96,8,7,-20,-10,-14,-11,0,-24,-39,-19,-42,-63,-138,-137,-134,-129,-143,-144,-226,-170,-204,-192,-202,-134,-295,-291,-292,-275,-478,-476,-471,-460,-588,-586,-544,-499,-625,-633,-661,-647,-946,-962,-837,-295,-295,-303,-288,-291,-237,-253,-396,-396,-375,-365,-368,-344,-622,-622,-710,-689,-793,-787,-712,-674,-1481,-1368,-2100,-1708,-6613,-5845,-29977,-29978,-29979,-29979,-29977,-29980,-29980,-29981,-29976,-29974]} 1. e4 {[%emt 0:01:00]} e6 {[%emt 0:01:00]} 2. d3 {[%emt 0:00:30]} d5 {[%emt 0:00:30]} 3. Nd2 {[%emt 0:00:30]} c5 {[%emt 0:00:30]} 4. g3 {[%emt 0:00:30]} Nc6 {[%emt 0:00:30]} 5. Bg2 {[%emt 0:00:00]} g6 {[%emt 0:00:00]} 6. Ngf3 {[%emt 0:01:00]} Bg7 {[%emt 0:00:00]} 7. c3 {[%emt 0:01:30]} Nf6 {[%emt 0:00:00]} 8. O-O {[%emt 0:00:00]} O-O {[%emt 0:00:00]} 9. Re1 {[%emt 0:02:00]} a5 {[%emt 0:00:30]} 10. e5 {[%emt 0:01:30]} Ng4 {[%emt 0:00:30]} 11. d4 {[%emt 0:01:30]} cxd4 {[%emt 0:00:30]} 12. cxd4 {[%emt 0:00:30] The position is equal.} f6 {[%emt 0:00:00][%cal Rf6e5]} 13. h3 {[%emt 0:04:30] [#]} Nxf2 {[%emt 0:00:00]} 14. Kxf2 {[%emt 0:00:30] Kg1 would now be deadly.} (14. Qe2 Ne4) 14... fxe5 {[%emt 0:00:30]} 15. Kg1 {[%emt 0:00:30]} (15. dxe5 $15 Qb6+ 16. Re3) 15... exd4 $17 {[%emt 0:20:30]} (15... e4 16. Nxe4 dxe4 17. Rxe4 $15) 16. Nb3 {[%emt 0:44:30]} e5 {[%emt 0:00:30][%cal Be6e5,Be5e4][%mdl 1056] Against Bf4. Black has strong compensation.} 17. Bg5 {[%emt 0:08:30]} Qd6 {[%emt 0:05:30]} 18. Rc1 {[%emt 0:04:30]} (18. Nbxd4 $17 {keeps fighting.} exd4 19. Bf4 Rxf4 20. gxf4) 18... h6 {[%emt 0:02:30]} 19. Bd2 {[%emt 0:01:30]} e4 {[%emt 0:21:30]} 20. Bf4 {[%emt 0:02:30]} Qf6 {[%emt 0:09:30][%cal Oa5a4]} 21. Rxc6 $2 {[%emt 0:06:46]} (21. Rf1 $17) 21... bxc6 $19 {[%emt 0:00:30]} 22. Be5 {[%emt 0:00:00]} Qf7 {[%emt 0:02:30]} 23. Nbxd4 {[%emt 0:11:13]} (23. Bxg7 exf3 (23... Kxg7 24. Qxd4+ Kh7 25. Ne5 $17) (23... Qxg7 24. Nfxd4 Kh7 25. Qd2 $11) 24. Bxf8 f2+ 25. Kh2 fxe1=R (25... fxe1=Q $2 26. Qxe1 Kxf8 27. Nxd4 $19) 26. Qxe1 Kxf8 (26... Qxf8 $2 27. Nxd4 Qf6 28. Qe8+ Kh7 29. Nxc6 $19) 27. Nxd4) 23... exf3 {[%emt 0:00:30]} 24. Nxf3 {[%emt 0:00:04] [#]} Bxh3 $1 {[%emt 0:06:30]} 25. Bxg7 {[%emt 0:04:23]} (25. Bxh3 Qxf3) 25... Bxg2 {[%emt 0:00:30]} ({Not} 25... Qxg7 26. Bxh3 Rae8 (26... Qxb2 27. Re6 $11) 27. Rxe8 Rxe8 28. Qc2 $17) 26. Kxg2 {[%emt 0:00:04]} Qxg7 {[%emt 0:02:30]} 27. Qc2 {[%emt 0:00:10]} Qf6 {[%emt 0:07:03]} 28. Nh2 {[%emt 0:01:37]} Rae8 {[%emt 0:01:03]} 29. Ng4 {[%emt 0:00:55]} Qf3+ {[%emt 0:07:06]} 30. Kh3 {[%emt 0:00:30]} Qf5 $2 {[%emt 0:00:00]} ({Stronger than} 30... Rxe1 31. Qxg6+ Kh8 32. Qxh6+ Kg8 33. Qg6+ Kh8 34. Qh6+ Kg8 35. Qg6+ Kh8 36. Qh6+ $11) (30... Kg7 31. Qd2 Rxe1 32. Qxe1 Rf5 (32... Qf1+ $2 33. Qxf1 Rxf1 34. Ne5 $19) 33. Qe7+ Kh8 (33... Rf7 $2 34. Qe5+ Kh7 35. Nh2 $19) 34. Qd8+ Kh7 (34... Rf8 $2 35. Qe7 $19) 35. Qe7+ Rf7) 31. Qxf5 {[%emt 0:00:57]} gxf5 {[%emt 0:00:30][%mdl 4096] Endgame. KRR-KRN} 32. Nf6+ {[%emt 0:00:00]} Kf7 {[%emt 0:00:35]} 33. Nxe8 {[%emt 0:00:07]} Rxe8 {[%emt 0:00:00] KR-KR} 34. Rf1 {[%emt 0:00:05]} (34. Rc1 $142) 34... Re2 {[%emt 0:00:14]} 35. Rxf5+ {[%emt 0:00:37]} Kg6 {[%emt 0:00:05]} 36. Rf8 {[%emt 0:00:38]} Rxb2 {[%emt 0:00:30]} 37. Ra8 $2 {[%emt 0:00:00]} (37. a4) 37... d4 {[%emt 0:01:22] Hoping for ...d3.} 38. Kg4 {[%emt 0:00:07]} Rf2 {[%emt 0:03:13] And now ...d3 would win.} 39. Rd8 {[%emt 0:01:55]} h5+ {[%emt 0:00:45]} (39... Rxa2 $2 40. Rd6+ Kf7 41. Kf4 $19) 40. Kh3 {[%emt 0:00:30]} c5 {[%emt 0:00:30]} 41. Rd6+ {[%emt 0:00:19]} Kf5 {[%emt 0:01:36]} 42. Rd5+ {[%emt 0:01:25]} Ke4 {[%emt 0:00:30]} 43. Rxc5 {[%emt 0:00:30]} d3 {[%emt 0:00:00] ( -> ...d2)} 44. Rc8 {[%emt 0:00:00]} Rf5 {[%emt 0:00:14] Black mates.} 45. Re8+ {[%emt 0:01:35]} Re5 {[%emt 0:00:56]} 46. Rd8 {[%emt 0:00:03]} Rd5 {[%emt 0:00:29]} 47. Re8+ {[%emt 0:00:30]} Kd4 {[%emt 0:00:30]} 48. Re1 {[%emt 0:00:30]} d2 {[%emt 0:00:00] Black took control after the opening.   Weighted Error Value: White=0.76/Black=0.35.  Loses game:     	White=1     	---        Mistake:       	White=5     	---        Inaccurate:     	---       	Black=1      OK:         	White=9     	Black=14     Best:        	---       	Black=3      Brilliant:      	---       	Black=1} 0-1

[Event "10th Cesme Open-B 2024"]
[Site "Cesme"]
[Date "2024.06.27"]
[Round "6"]
[White "Sanan, Demirhan"]
[Black "Tezcan, Alper"]
[Result "0-1"]
[ECO "D46"]
[WhiteElo "1740"]
[BlackElo "1936"]
[Annotator "NA RC"]
[PlyCount "90"]
[EventDate "2024.06.23"]
[EventType "swiss"]
[EventCountry "TUR"]
[SourceTitle "playchess.com"]
[Source "ChessBase"]
[SourceQuality "1"]
[TimeControl "5400+30"]

1. Nf3 {[%emt 0:01:00]} d5 {[%emt 0:04:00]} 2. e3 {[%emt 0:00:30]} Nf6 {[%emt 0:01:30]} 3. c4 {[%emt 0:00:00]} c6 {[%emt 0:04:30]} 4. Nc3 {[%emt 0:00:00]} e6 {[%emt 0:07:30]} 5. b3 {[%emt 0:00:30]} Be7 {[%emt 0:00:30]} 6. Bb2 {[%emt 0:00:00]} Nbd7 {[%emt 0:00:30]} 7. d4 {[%emt 0:00:00]} O-O {[%emt 0:00:30]} 8. Bd3 {[%emt 0:00:30]} Re8 {[%emt 0:00:30]} 9. O-O {[%emt 0:00:00]} b6 {[%emt 0:05:30]} 10. Qe2 {[%emt 0:01:00]} Bb7 {[%emt 0:09:30]} 11. Rac1 {[%emt 0:00:30]} c5 {[%emt 0:10:30]} 12. cxd5 {[%emt 0:01:30]} Nxd5 {[%emt 0:02:30]} 13. Nxd5 {[%emt 0:01:30]} Bxd5 {[%emt 0:01:30]} 14. Rfd1 {[%emt 0:00:00]} Qb8 {[%emt 0:26:30]} 15. Bb5 {[%emt 0:05:00]} Rd8 {[%emt 0:00:30]} 16. e4 {[%emt 0:03:30]} Bb7 {[%emt 0:00:30]} 17. d5 {[%emt 0:01:30]} exd5 {[%emt 0:01:30]} 18. exd5 {[%emt 0:00:00]} Bf6 {[%emt 0:01:30]} 19. Rc2 {[%emt 0:01:00]} Bxb2 {[%emt 0:01:31]} 20. Rxb2 {[%emt 0:00:00]} Nf6 {[%emt 0:02:47]} 21. Rbd2 {[%emt 0:00:00]} Rxd5 {[%emt 0:12:17]} 22. Rxd5 {[%emt 0:00:00]} Nxd5 {[%emt 0:00:05]} 23. Bc4 {[%emt 0:05:00]} Qd6 {[%emt 0:00:10]} 24. Ng5 {[%emt 0:01:30]} Rd8 {[%emt 0:03:46]} 25. Qh5 {[%emt 0:05:30]} Qg6 {[%emt 0:00:48]} 26. Qh4 {[%emt 0:00:30]} h6 {[%emt 0:01:26]} 27. Nxf7 {[%emt 0:00:30]} Re8 {[%emt 0:00:49]} 28. Nd8 {[%emt 0:00:30]} Ba8 {[%emt 0:00:05]} 29. h3 {[%emt 0:01:30]} Qd6 {[%emt 0:00:59]} 30. Qh5 {[%emt 0:01:30]} Rxd8 {[%emt 0:00:30]} 31. Re1 {[%emt 0:00:30]} Bc6 {[%emt 0:00:30]} 32. Qg4 {[%emt 0:00:00]} Kh8 {[%emt 0:00:36]} 33. Re6 {[%emt 0:00:00]} Qd7 {[%emt 0:00:30]} 34. Qh4 {[%emt 0:00:00]} Qxe6 {[%emt 0:00:38]} 35. Qxd8+ {[%emt 0:00:00]} Qg8 {[%emt 0:00:30]} 36. Qd6 {[%emt 0:00:00]} Ba8 {[%emt 0:00:30]} 37. a4 {[%emt 0:01:00]} a6 {[%emt 0:00:27]} 38. b4 {[%emt 0:00:00]} cxb4 {[%emt 0:00:30]} 39. Bb3 {[%emt 0:00:00]} a5 {[%emt 0:00:37]} 40. h4 {[%emt 0:00:30]} Bb7 {[%emt 0:00:04]} 41. h5 {[%emt 0:00:00]} Qa8 {[%emt 0:01:12]} 42. g4 {[%emt 0:00:00]} Nc3 {[%emt 0:00:15]} 43. g5 {[%emt 0:00:00]} Qe8 {[%emt 0:00:28]} 44. Be6 {[%emt 0:00:00]} Ne4 {[%emt 0:00:20]} 45. Qxb6 {[%emt 0:00:30]} Nxg5 {[%emt 0:00:05]} 0-1